bitfinex-derivatives/quotes_BNBF0:USTF0_20250807
["timestamp","ask_amount","ask_price","bid_price","bid_amount"]
[1754595915106,1.9062506,779.39,778.53,0.86419795]
[1754595915404,0.8582506,779.38,778.51,0.86419795]
[1754595915603,0.8582506,779.37,778.51,0.86419795]
[1754595915803,0.8582506,779.36,778.5,0.86419795]
[1754595916006,0.8582506,779.35,778.48,1.76219795]
[1754595916204,0.8582506,779.34,778.48,0.898]
[1754595916400,0.8582506,779.33,778.48,0.898]
[1754595916600,0.8582506,779.32,778.48,0.898]
[1754595916804,0.8582506,779.31,778.48,0.898]
[1754595917100,0.8582506,779.3,778.48,0.898]
[1754595917304,0.8582506,779.29,778.48,0.898]
[1754595917499,0.8582506,779.28,778.48,0.898]
[1754595917704,0.8582506,779.27,778.48,0.898]
[1754595917901,0.8582506,779.26,778.48,0.898]
[1754595918201,1.048,779.39,778.48,0.898]
[1754595918400,0.85771795,779.38,778.48,0.898]
[1754595918704,0.85771795,779.37,778.48,0.898]
[1754595919005,0.85771795,779.36,778.48,0.898]
[1754595919200,0.85771795,779.35,778.48,0.898]
[1754595919404,0.85771795,779.34,778.48,0.898]
[1754595919701,0.85771795,779.33,778.48,0.898]
[1754595919901,0.85771795,779.32,778.48,0.898]
[1754595920100,0.85771795,779.31,778.48,0.898]
[1754595920300,0.85771795,779.3,778.48,0.898]
[1754595920504,0.85771795,779.29,778.48,0.898]
[1754595920804,0.85771795,779.28,778.48,0.898]
[1754595921007,0.85771795,779.27,778.48,0.898]
[1754595921302,1.048,779.39,778.48,0.898]
[1754595921501,0.8574755,779.38,778.48,0.898]
[1754595921701,0.8574755,779.37,778.48,0.898]
[1754595922005,0.8574754,779.36,778.48,0.898]
[1754595922204,0.8574754,779.35,778.48,0.898]
[1754595922405,0.8574754,779.34,778.48,0.898]
[1754595922605,0.8574754,779.33,778.48,0.898]
[1754595922907,0.8574754,779.32,778.48,0.898]
[1754595923202,0.8574754,779.31,778.48,0.898]
[1754595923406,0.8574754,779.3,778.48,0.898]
[1754595923601,0.8574754,779.29,778.48,0.898]
[1754595923801,0.8574754,779.28,778.48,0.898]
[1754595924001,0.8574754,779.27,778.48,0.898]
[1754595924203,0.8574754,779.26,778.48,0.898]
[1754595924506,0.8574754,779.25,778.48,1.76219795]
[1754595924703,0.8574754,779.24,778.48,1.76219795]
[1754595924902,1.048,779.39,778.49,0.86419795]
[1754595925107,0.85722734,779.38,778.49,0.86419795]
[1754595925303,0.85722734,779.37,778.52,0.86419795]
[1754595925604,0.85722734,779.36,778.52,0.86419795]
[1754595925805,0.85722734,779.35,778.52,0.86419795]
[1754595926010,0.85722734,779.34,778.52,0.86419795]
[1754595926209,1.048,779.39,778.48,0.898]
[1754595926403,0.8570284,779.38,778.52,0.86419795]
[1754595926609,0.8570284,779.37,778.52,0.86419795]
[1754595926809,0.8570284,779.36,778.53,0.86419795]
[1754595927006,0.8570284,779.35,778.5,0.86419795]
[1754595927209,0.8570284,779.34,778.5,0.86419795]
[1754595927403,0.8570284,779.33,778.62,0.86419795]
[1754595927606,0.8570284,779.32,778.62,0.86419795]
[1754595927807,0.8570284,779.32,778.27,1.7283157]
[1754595927808,1.048,779.39,778.63,0.86419795]
[1754595928009,0.85691814,779.38,778.65,0.86419795]
[1754595928209,0.85691814,779.38,778.48,1.1522105]
[1754595928210,0.85691814,779.37,778.68,0.86419795]
[1754595928409,0.85691814,779.36,778.67,0.86419795]
[1754595928608,0.85691814,779.35,778.66,0.86419795]
[1754595928812,0.85691814,779.34,778.65,0.86419795]
[1754595929010,0.85691814,779.33,778.65,0.86419795]
[1754595929314,1.048,779.39,778.65,0.86419795]
[1754595929513,0.85679379,779.38,778.64,0.86419795]
[1754595929813,0.85679379,779.37,778.64,0.86419795]
[1754595930010,0.85679379,779.36,778.64,0.86419795]
[1754595930208,1.048,779.39,778.64,0.86419795]
[1754595930407,1.048,779.39,778.65,0.972]
[1754595937118,1.048,779.39,778.66,0.86419795]
[1754595937514,1.048,779.39,778.65,1.83619795]
[1754595937714,1.048,779.39,778.72,0.86419795]
[1754595938520,1.048,779.39,778.71,0.85428126]
[1754595938712,1.048,779.39,778.72,0.85428126]
[1754595939619,1.048,779.39,778.71,0.85428126]
[1754595940116,1.048,779.39,778.72,0.85428126]
[1754595940415,1.048,779.39,778.71,0.85428126]
[1754595940815,1.048,779.39,778.69,0.85428126]
[1754595941618,1.048,779.39,778.68,0.85428126]
[1754595944220,1.048,779.39,778.69,0.85428126]
[1754595945121,1.048,779.39,778.72,0.85428126]
[1754595945317,1.048,779.39,778.78,0.85428126]
[1754595945822,1.048,779.39,778.65,0.972]
[1754595945823,1.048,779.39,778.66,0.85428126]
[1754595946023,1.048,779.39,778.7,0.85428126]
[1754595946219,1.048,779.39,778.71,0.85428126]
[1754595946416,1.048,779.39,778.75,0.85428126]
[1754595946619,1.048,779.39,778.78,0.85428126]
[1754595946817,1.048,779.39,778.76,0.85428126]
[1754595947020,1.048,779.39,778.78,0.85428126]
[1754595947219,1.048,779.39,778.88,0.85428126]
[1754595947420,1.048,779.39,778.87,0.85428126]
[1754595947722,1.048,779.39,779.06,0.85428126]
[1754595947922,1.048,779.39,779.05,0.85428126]
[1754595948120,1.048,779.39,779.08,0.85428126]
[1754595948319,1.048,779.39,779.06,0.85428126]
[1754595949421,1.048,779.39,779.08,0.85428126]
[1754595949925,1.048,779.39,779.09,0.85428126]
[1754595950425,1.048,779.39,779.1,0.85428126]
[1754595950625,1.048,779.39,779.07,0.85428126]
[1754595951323,1.048,779.39,779.06,0.85428126]
[1754595951724,1.048,779.39,779.07,0.85428126]
[1754595951927,1.048,779.39,779.06,0.85428126]
[1754595952228,1.048,779.39,779.05,0.85428126]
[1754595952523,1.048,779.39,779.04,0.85428126]
[1754595952726,1.048,779.39,779.06,0.85428126]
[1754595953023,1.048,779.39,779.1,0.85428126]
[1754595953328,1.048,779.39,779.11,0.868]
[1754595959933,1.048,779.39,779.13,0.85428126]
[1754595960130,1.048,779.39,779.14,0.85428126]
[1754595960334,0.22317635,780.29,779.14,0.85428126]
[1754595960534,0.85045019,780.28,779.14,0.85428126]
[1754595960833,0.85045019,780.27,779.11,0.868]
[1754595961133,0.85045019,780.26,779.11,0.868]
[1754595961434,0.85045019,780.25,779.11,0.868]
[1754595961733,0.22310338,780.34,779.13,0.85428126]
[1754595961933,0.85017436,780.33,779.15,0.85428126]
[1754595962129,0.85017436,780.32,779.15,0.85428126]
[1754595962327,0.793,780.33,779.15,0.85428126]
[1754595962528,0.8499524,780.32,779.15,0.85428126]
[1754595962730,0.84998775,780.31,779.11,0.868]
[1754595962932,0.84998775,780.3,779.11,0.868]
[1754595963231,0.84998775,780.29,779.11,0.868]
[1754595963529,0.84998775,780.28,779.11,0.868]
[1754595963732,0.84998775,780.27,779.11,0.868]
[1754595963933,0.84998775,780.26,779.11,0.868]
[1754595964231,0.793,780.33,779.11,0.868]
[1754595964433,0.8499602,780.32,779.11,0.868]
[1754595964629,0.8499602,780.31,779.11,0.868]
[1754595964832,0.8499602,780.3,779.11,0.868]
[1754595965032,0.8499602,780.29,779.11,0.868]
[1754595965233,0.8499602,780.28,779.11,0.868]
[1754595965436,0.793,780.33,779.11,0.868]
[1754595965646,0.84991878,780.32,779.11,0.868]
[1754595965938,0.84991878,780.31,779.11,0.868]
[1754595966232,0.793,780.33,779.11,0.868]
[1754595966233,0.84991878,780.3,779.11,0.868]
[1754595966434,0.84990486,780.29,779.11,0.868]
[1754595966634,0.84990486,780.28,779.11,0.868]
[1754595966934,0.84990486,780.27,779.11,0.868]
[1754595967230,0.84990486,780.26,779.11,0.868]
[1754595967530,0.84990486,780.25,779.11,0.868]
[1754595967734,0.84990486,780.24,779.11,0.868]
[1754595967936,0.793,780.33,779.11,0.868]
[1754595968133,0.84974393,780.32,779.11,0.868]
[1754595968333,0.793,780.33,779.11,0.868]
[1754595968734,0.849582,780.32,779.11,0.868]
[1754595969036,0.793,780.33,779.11,0.868]
[1754595969338,0.84944334,780.32,779.12,0.85428126]
[1754595969633,0.793,780.33,779.11,0.868]
[1754595970938,0.84943068,780.32,779.11,0.868]
[1754595971136,0.84943068,780.31,779.11,0.868]
[1754595971336,0.84943068,780.3,779.11,0.868]
[1754595971538,0.84943068,780.29,778.77,1.1522105]
[1754595971838,0.84943068,780.28,779.02,0.84921192]
[1754595972035,0.793,780.33,779.04,0.84921192]
[1754595972232,0.84954793,780.32,779.04,0.84921192]
[1754595972439,0.84954793,780.31,779.03,0.84921192]
[1754595972639,0.84954793,780.3,779.06,0.84921192]
[1754595972932,0.84954793,780.29,779.07,0.84921192]
[1754595973137,0.84954793,780.28,779.07,0.84921192]
[1754595973337,0.793,780.33,779.09,0.84921192]
[1754595973545,0.849453,780.32,779.09,0.84921192]
[1754595973745,0.849453,780.31,779.09,0.84921192]
[1754595974042,0.793,780.33,779.09,0.84921192]
[1754595974241,0.84947784,780.32,779.09,0.84921192]
[1754595974446,0.793,780.33,779.09,0.84921192]
[1754595974942,0.793,780.33,779.1,0.729]
[1754595975646,0.8493958,780.32,779.1,0.729]
[1754595975842,0.8493958,780.31,779.1,0.729]
[1754595976143,0.8493958,780.3,779.11,0.84871514]
[1754595976444,0.8493958,780.29,779.12,0.84871514]
[1754595976646,0.8493958,780.28,779.12,0.84871514]
[1754595976845,0.793,780.33,779.12,0.84871514]
[1754595977142,0.84943855,780.32,779.12,0.84871514]
[1754595977344,0.84943855,780.31,779.13,0.84871514]
[1754595977545,0.84943855,780.3,779.1,0.729]
[1754595977746,0.84943855,780.29,779.1,0.729]
[1754595978043,0.84943855,780.28,779.1,0.729]
[1754595978348,0.84943855,780.27,779.1,0.729]
[1754595978541,0.84943855,780.26,779.1,0.729]
[1754595978745,0.84943855,780.25,779.1,0.729]
[1754595978947,0.793,780.33,779.1,0.729]
[1754595978948,0.84943855,780.24,779.1,0.729]
[1754595979147,0.84943855,780.23,779.1,0.729]
[1754595979348,0.84943855,780.22,779.1,0.729]
[1754595979548,0.84943855,780.21,779.1,0.729]
[1754595979749,0.84943855,780.2,779.1,0.729]
[1754595979949,0.84943855,780.19,779.1,0.729]
[1754595980248,0.84943855,780.18,779.1,0.729]
[1754595980447,0.84943855,780.17,779.1,0.729]
[1754595980650,0.84943855,780.16,779.11,0.84871514]
[1754595980850,0.793,780.33,779.12,0.84871514]
[1754595981050,0.85015998,780.32,779.12,0.84871514]
[1754595981248,0.85015998,780.31,779.12,0.84871514]
[1754595981453,0.85015998,780.3,779.14,0.84871514]
[1754595981752,0.85015998,780.29,779.14,0.84871514]
[1754595981951,0.85015998,780.28,779.16,0.84871514]
[1754595982151,0.85015998,780.27,779.16,0.84871514]
[1754595982348,0.85015998,780.26,779.17,0.84871514]
[1754595982553,0.85015998,780.25,779.17,0.84871514]
[1754595982753,0.85015998,780.24,779.18,0.84871514]
[1754595982954,0.793,780.33,779.16,0.84871514]
[1754595983249,0.85069956,780.32,779.19,0.84871514]
[1754595983454,0.85069956,780.31,779.21,0.84871514]
[1754595983648,0.85069956,780.3,779.21,0.84871514]
[1754595983852,0.85069956,780.29,779.21,0.84871514]
[1754595984153,0.85069956,780.28,779.19,0.84871514]
[1754595984449,0.85069956,780.27,779.19,0.84871514]
[1754595984653,0.85069956,780.26,779.19,0.84871514]
[1754595984849,0.85069956,780.25,779.19,0.84871514]
[1754595985152,0.85069956,780.24,779.19,0.84871514]
[1754595985353,0.85069956,780.23,779.21,0.84871514]
[1754595985650,0.85069956,780.22,779.21,0.84871514]
[1754595985949,0.85069956,780.21,779.22,0.84871514]
[1754595986154,0.793,780.33,779.21,0.84871514]
[1754595986155,0.85069956,780.2,779.21,0.84871514]
[1754595986453,0.85069956,780.19,779.23,0.84871514]
[1754595986654,0.85069956,780.18,779.21,0.84871514]
[1754595986854,0.85069956,780.17,779.21,0.84871514]
[1754595987054,0.85069956,780.16,779.21,0.84871514]
[1754595987253,0.85069956,780.15,779.2,0.84871514]
[1754595987456,0.793,780.33,779.21,0.84871514]
[1754595987754,0.85232031,780.32,779.21,0.84871514]
[1754595988050,0.85232031,780.31,779.22,0.84871514]
[1754595988256,0.85232031,780.3,779.23,0.84871514]
[1754595988453,0.85232031,780.29,779.2,0.84871514]
[1754595988757,0.85232031,780.28,779.19,0.84871514]
[1754595988956,0.85232031,780.28,779.1,0.729]
[1754595988957,0.85232031,780.27,779.2,0.84871514]
[1754595989157,0.85232031,780.26,779.2,0.84871514]
[1754595989454,0.85232031,780.25,779.19,0.84871514]
[1754595989755,0.85232031,780.24,779.19,0.84871514]
[1754595989957,0.85232031,780.23,779.19,0.84871514]
[1754595990157,0.85232031,780.22,779.19,0.84871514]
[1754595990357,0.85232031,780.21,779.21,0.84871514]
[1754595990554,0.85232031,780.2,779.2,0.84871514]
[1754595990758,0.85232031,780.19,779.19,0.84871514]
[1754595990960,0.85232031,780.18,779.16,0.84871514]
[1754595991155,0.85232031,780.17,779.16,0.84871514]
[1754595991455,0.85232031,780.17,779.18,0.84871514]
[1754595991853,0.85352963,780.16,779.18,0.84871514]
[1754595992058,0.85352963,780.15,779.18,0.84871514]
[1754595992255,0.735,780.18,779.18,0.84871514]
[1754595992454,0.85378287,780.17,779.19,0.84871514]
[1754595993456,0.85378287,780.17,779.21,0.84871514]
[1754595993757,0.85378287,780.17,779.17,0.84871514]
[1754595994357,0.85378287,780.17,779.18,0.84871514]
[1754595994561,0.85378287,780.17,779.19,0.84871514]
[1754595994762,0.85378287,780.17,779.17,0.84871514]
[1754595994960,0.85378287,780.17,779.16,0.84871514]
[1754595995464,0.85378287,780.17,779.19,0.84871514]
[1754595995660,0.85378287,780.17,779.18,0.84871514]
[1754595996160,0.85378287,780.17,779.19,0.84871514]
[1754595997362,0.85378287,780.17,779.21,0.84871514]
[1754595997758,0.85378287,780.17,779.2,0.84871514]
[1754595998160,0.85378287,780.17,779.19,0.84871514]
[1754595998365,0.85378287,780.17,779.2,0.84871514]
[1754595998561,0.85378287,780.17,779.21,0.84871514]
[1754595998761,0.85378287,780.17,779.2,0.84871514]
[1754595999263,0.85378287,780.17,779.1,0.729]
[1754595999264,0.85378287,780.17,779.22,0.84871514]
[1754595999464,0.85378287,780.17,779.25,0.84871514]
[1754595999661,0.85378287,780.17,779.24,0.84871514]
[1754595999864,0.85378287,780.17,779.1,0.729]
[1754595999865,0.85378287,780.17,779.19,0.84871514]
[1754596000266,0.85378287,780.17,779.2,0.84871514]
[1754596000561,0.85378287,780.17,779.26,0.84871514]
[1754596000766,0.85708701,780.16,779.3,0.84871514]
[1754596000966,0.85708701,780.15,779.3,0.84871514]
[1754596001166,0.735,780.18,779.33,0.84871514]
[1754596001366,0.85740007,780.17,779.34,0.84871514]
[1754596001565,0.85280266,780.15,779.31,0.84871514]
[1754596001765,0.85280266,780.11,779.31,0.84871514]
[1754596002065,0.85740007,780.1,779.31,0.84871514]
[1754596002259,0.85740007,780.09,779.31,0.84871514]
[1754596002462,0.85740007,780.08,779.32,0.84871514]
[1754596002764,0.85740007,780.07,779.32,0.84871514]
[1754596002964,0.85740007,780.06,779.32,0.84871514]
[1754596003162,0.85740007,780.05,779.32,0.84871514]
[1754596003460,0.85740007,780.04,779.34,0.84871514]
[1754596003667,0.85740007,780.03,779.34,0.84871514]
[1754596003969,0.735,780.18,779.25,0.84871514]
[1754596004164,0.85806483,780.17,779.25,0.84871514]
[1754596004464,0.735,780.18,778.04,2.8805262]
[1754596004465,0.85806483,780.16,779.27,0.84871514]
[1754596004763,0.85806483,780.15,779.27,0.84871514]
[1754596004966,0.85806483,780.14,779.27,0.84871514]
[1754596005168,0.85806483,780.13,779.28,0.84871514]
[1754596005468,0.735,780.18,779.29,0.84871514]
[1754596005666,0.735,780.18,779.26,1.113]
[1754596005667,0.85887582,780.17,779.32,0.84871514]
[1754596005965,0.85887582,780.16,779.32,0.84871514]
[1754596006164,0.85925391,780.15,779.33,0.84871514]
[1754596006363,0.85925391,780.14,779.34,0.84871514]
[1754596006563,0.85925391,780.13,779.26,1.113]
[1754596006765,0.735,780.18,779.34,0.85817896]
[1754596007067,0.85927851,780.17,779.34,0.85817896]
[1754596007264,0.85927851,780.16,779.34,0.85817896]
[1754596007464,0.85927851,780.15,779.35,0.85817896]
[1754596007664,0.85927851,780.14,779.35,0.85817896]
[1754596007864,0.85927851,780.13,779.35,0.85817896]
[1754596008164,0.85927851,780.12,779.35,0.85817896]
[1754596008369,0.85927851,780.11,779.34,0.85817896]
[1754596008564,0.86003741,780.1,779.34,0.85817896]
[1754596008770,0.735,780.18,779.35,0.85817896]
[1754596008968,0.8625707,780.13,779.41,0.85817896]
[1754596009271,0.8625707,780.11,779.42,0.85817896]
[1754596009462,0.8625707,780.12,779.42,0.85817896]
[1754596009668,1.72259435,780.11,779.42,0.85817896]
[1754596009965,0.8625707,780.09,779.43,0.85817896]
[1754596010168,0.8625707,780.17,779.51,0.85817896]
[1754596010367,0.85993565,780.16,779.51,0.85817896]
[1754596010564,0.85993565,780.15,779.51,0.85817896]
[1754596010768,0.85993565,780.14,779.51,0.85817896]
[1754596010969,0.8625707,780.17,779.51,0.85817896]
[1754596011169,0.8625707,780.15,779.49,0.85817896]
[1754596011363,0.85992972,780.14,779.49,0.85817896]
[1754596011567,0.8625707,780.15,779.49,0.85817896]
[1754596011765,0.85988951,780.14,779.49,0.85817896]
[1754596011965,0.8625707,780.15,779.49,0.85817896]
[1754596012165,0.85988648,780.14,779.49,0.85817896]
[1754596012366,0.8625707,780.15,779.49,0.85817896]
[1754596012568,0.85985649,780.14,779.52,0.85817896]
[1754596012771,0.735,780.18,779.43,0.85817896]
[1754596013773,0.735,780.18,779.45,0.85817896]
[1754596013967,0.735,780.18,779.5,0.85817896]
[1754596015873,0.735,780.18,779.49,0.85817896]
[1754596016571,0.735,780.18,779.5,0.85817896]
[1754596017074,0.735,780.18,779.46,0.85817896]
[1754596018076,0.735,780.18,779.45,0.85817896]
[1754596018772,0.735,780.18,779.48,0.85817896]
[1754596019378,0.735,780.18,779.54,0.85817896]
[1754596019579,0.735,780.18,779.53,0.85817896]
[1754596020075,0.735,780.18,779.57,0.85817896]
[1754596020579,0.735,780.18,779.59,0.85817896]
[1754596020775,0.735,780.18,779.6,0.85817896]
[1754596021580,0.735,780.18,779.57,0.85817896]
[1754596022574,0.735,780.18,779.58,0.85817896]
[1754596022875,0.735,780.18,779.51,0.85817896]
[1754596023580,0.735,780.18,779.54,0.85817896]
[1754596023780,0.735,780.18,779.53,0.85817896]
[1754596024080,0.735,780.18,779.56,0.85817896]
[1754596025281,0.735,780.18,779.55,0.85817896]
[1754596025681,0.735,780.18,779.56,0.85817896]
[1754596025878,0.735,780.18,779.55,0.85817896]
[1754596027278,0.735,780.18,779.54,0.85817896]
[1754596027782,0.735,780.18,779.23,1.1522105]
[1754596027783,0.735,780.18,779.52,0.85817896]
[1754596027980,0.735,780.18,779.55,0.85817896]
[1754596028785,0.735,780.18,779.56,1.105]
[1754596029085,0.735,780.18,779.59,0.85817896]
[1754596029585,0.735,780.18,779.61,0.85817896]
[1754596029884,0.735,780.18,779.65,0.85817896]
[1754596030081,0.735,780.18,779.61,0.85817896]
[1754596030685,0.735,780.18,779.65,0.85817896]
[1754596031186,0.735,780.18,779.61,0.85817896]
[1754596032183,0.735,780.18,779.58,0.85817896]
[1754596033384,0.85994789,780.17,779.58,0.85817896]
[1754596033687,0.85994789,780.17,779.56,1.105]
[1754596033688,0.735,780.18,779.57,0.85817896]
[1754596033988,0.85994789,780.17,779.56,1.105]
[1754596034187,0.85994789,780.16,779.56,1.105]
[1754596034387,0.85994789,780.15,779.56,1.105]
[1754596034690,0.85994789,780.14,779.56,1.105]
[1754596034890,0.8625707,780.39,779.56,1.105]
[1754596035092,1.72254295,780.38,779.56,1.105]
[1754596035286,0.85997225,780.37,779.56,1.105]
[1754596035491,0.8625707,780.38,779.56,1.105]
[1754596035492,0.85997225,780.36,779.56,1.105]
[1754596035689,0.85997225,780.35,779.56,1.105]
[1754596035890,0.85997225,780.34,779.56,1.105]
[1754596036191,0.85997225,780.33,779.56,1.105]
[1754596036385,0.8625707,780.37,779.56,1.105]
[1754596036386,2.04097225,780.32,779.56,1.105]
[1754596036587,0.85997225,780.31,779.56,1.105]
[1754596036892,1.72254295,780.31,779.56,1.105]
[1754596037092,0.85997225,780.3,779.56,1.105]
[1754596037592,0.85997225,780.29,779.56,1.105]
[1754596037788,0.85997225,780.28,779.56,1.105]
[1754596038088,0.85997225,780.27,779.56,1.105]
[1754596038292,0.85997225,780.26,779.56,1.105]
[1754596038490,0.85997225,780.25,779.56,1.105]
[1754596038790,0.85997225,780.24,779.56,1.105]
[1754596038990,0.85997225,780.23,779.56,1.105]
[1754596039292,0.85997225,780.22,779.56,1.105]
[1754596039486,0.85997225,780.21,779.56,1.105]
[1754596039693,0.85997225,780.2,779.56,1.105]
[1754596039891,0.85997225,780.19,779.56,1.105]
[1754596040191,0.85997225,780.18,779.56,1.105]
[1754596040392,0.85997225,780.17,779.56,1.105]
[1754596040595,1.181,780.32,779.63,0.85817896]
[1754596040795,0.86001211,780.16,779.63,0.85817896]
[1754596041492,0.86001211,780.16,779.67,0.85817896]
[1754596042598,0.86001211,780.16,779.59,0.85817896]
[1754596043398,0.86001211,780.16,779.58,0.85817896]
[1754596043593,0.86001211,780.16,779.6,0.815]
[1754596052109,0.86001211,780.16,779.62,0.85817896]
[1754596052309,0.86001211,780.16,779.65,0.85817896]
[1754596053206,0.86001211,780.16,779.66,0.85817896]
[1754596053408,0.86001211,780.16,779.65,0.85817896]
[1754596053708,0.938,780.15,779.65,0.85817896]
[1754596054407,0.938,780.15,779.66,0.85817896]
[1754596054608,0.938,780.15,779.65,0.85817896]
[1754596054911,0.938,780.15,779.64,0.85817896]
[1754596057214,0.938,780.15,779.63,0.85817896]
[1754596057609,0.938,780.15,779.44,1.1522105]
[1754596057813,0.938,780.15,779.63,0.85582402]
[1754596058214,0.938,780.15,779.64,0.904]
[1754596059317,0.938,780.15,779.64,1.75982402]
[1754596060014,0.938,780.15,779.64,0.904]
[1754596067422,0.938,780.15,779.65,0.85582402]
[1754596068424,0.938,780.15,779.66,0.85582402]
[1754596069422,0.938,780.15,779.67,0.85582402]
[1754596069918,0.938,780.15,779.69,0.85582402]
[1754596070322,0.938,780.15,779.7,0.85582402]
[1754596070522,0.938,780.15,779.71,0.85582402]
[1754596071020,0.938,780.15,779.72,0.85582402]
[1754596072222,0.938,780.15,779.74,0.85582402]
[1754596072523,0.938,780.15,779.75,0.85582402]
[1754596072724,0.938,780.15,779.74,0.85582402]
[1754596073225,0.938,780.15,779.69,0.85582402]
[1754596073725,0.938,780.15,779.68,0.85582402]
[1754596074226,0.938,780.15,779.67,0.85582402]
[1754596074526,0.938,780.15,779.68,0.85582402]
[1754596075425,0.938,780.15,779.69,0.85582402]
[1754596077227,0.938,780.15,779.68,0.85582402]
[1754596077927,0.938,780.15,779.7,0.85582402]
[1754596078625,0.86001211,780.16,779.71,0.85582402]
[1754596079226,0.86001211,780.16,779.7,0.85582402]
[1754596079429,0.86001211,780.16,779.64,0.904]
[1754596079430,0.86001211,780.16,779.71,0.85582402]
[1754596080428,0.86001211,780.16,779.7,0.85582402]
[1754596080628,0.86254893,780.15,779.64,1.75982402]
[1754596080828,0.86254893,780.14,779.64,1.76279928]
[1754596081029,0.86254893,780.13,779.64,0.904]
[1754596081331,0.86254893,780.12,779.64,0.904]
[1754596081532,0.86254893,780.11,779.64,0.904]
[1754596084431,1.036,780.12,779.64,0.904]
[1754596084634,0.86217478,780.11,779.64,0.904]
[1754596084933,0.86217478,780.1,779.64,0.904]
[1754596085236,0.86217478,780.09,779.64,0.904]
[1754596085437,0.86217478,780.08,779.64,0.904]
[1754596085637,0.86217478,780.07,779.64,0.904]
[1754596085838,0.86217478,780.06,779.64,0.904]
[1754596086037,0.86217478,780.05,779.64,0.904]
[1754596086237,0.86217478,780.04,779.64,0.904]
[1754596086442,0.86217478,780.03,779.46,0.85879928]
[1754596086639,0.86217478,780.02,779.46,0.85879928]
[1754596086934,0.86188829,780.01,779.46,0.85879928]
[1754596087135,1.036,780.12,779.46,0.85879928]
[1754596087338,0.86178401,780.11,779.46,0.85879928]
[1754596087536,0.86178401,780.1,779.46,0.85879928]
[1754596087736,0.86178401,780.09,779.46,0.85879928]
[1754596087941,0.86178401,780.08,779.46,0.85879928]
[1754596088240,0.86178401,780.07,779.46,0.85879928]
[1754596088535,0.86178401,780.07,779.29,1.1522105]
[1754596088536,0.86178401,780.06,779.44,0.85879928]
[1754596088839,0.86178401,780.05,779.44,0.85879928]
[1754596089039,1.036,780.12,779.44,0.85879928]
[1754596089040,0.86178401,780.04,779.44,0.85879928]
[1754596089340,0.86178401,780.03,779.45,1.081]
[1754596089538,1.036,780.12,779.45,1.081]
[1754596089737,0.86143448,780.11,779.45,1.081]
[1754596089938,0.86143448,780.1,779.45,1.081]
[1754596090237,0.86143448,780.09,779.45,1.081]
[1754596090437,0.86143448,780.08,779.45,1.081]
[1754596090640,0.86143448,780.07,779.45,1.081]
[1754596090837,0.86143448,780.06,779.45,1.081]
[1754596091040,0.86143448,780.05,779.45,1.081]
[1754596091240,0.86143448,780.04,779.45,1.081]
[1754596091541,1.036,780.12,779.45,1.081]
[1754596091742,0.86122949,780.11,779.45,1.081]
[1754596092041,0.86122949,780.1,779.45,1.081]
[1754596092341,0.86122949,780.09,779.45,1.081]
[1754596092537,0.86122949,780.08,779.45,1.081]
[1754596092740,0.86122949,780.07,779.45,1.081]
[1754596092941,1.036,780.12,779.45,1.081]
[1754596093241,0.8611318,780.11,779.45,1.081]
[1754596093438,0.86104013,780.1,779.45,1.081]
[1754596093642,0.86105017,780.09,779.45,1.081]
[1754596093837,0.86105017,780.08,779.45,1.081]
[1754596094043,0.86105017,780.07,779.45,1.081]
[1754596094237,1.036,780.12,779.45,1.081]
[1754596094439,0.86097082,780.11,779.45,1.081]
[1754596094642,0.86097082,780.1,779.45,1.081]
[1754596094843,0.86097082,780.09,779.45,1.081]
[1754596095043,0.86097082,780.08,779.45,1.081]
[1754596095343,1.036,780.12,779.45,1.081]
[1754596095540,0.86090379,780.11,779.45,1.081]
[1754596095744,0.86090379,780.1,779.45,1.081]
[1754596095941,0.86090379,780.09,779.45,1.081]
[1754596096146,0.86090379,780.08,779.45,1.081]
[1754596096445,1.036,780.12,779.45,1.081]
[1754596096644,0.86084006,780.11,779.45,1.081]
[1754596096841,0.86084006,780.1,779.45,1.081]
[1754596097043,0.86084006,780.09,779.45,1.081]